bitfinex/quotes_ETHUSD_20240701
["timestamp","ask_amount","ask_price","bid_price","bid_amount"]
[1719842001028,0.02820547,3460.6,3460.2,0.05779138]
[1719842001229,1.37410487,3460.9,3460.5,2.88975]
[1719842001451,0.02827053,3460.8,3460.2,2.88996]
[1719842001629,2.96137542,3461.3,3460.4,2.88983]
[1719842001630,1.37434219,3461.1,3460.4,2.88983]
[1719842001959,0.52772734,3461.0,3460.5,0.05778618]
[1719842002121,0.02732575,3461.0,3460.6,2.88962]
[1719842002472,0.02732575,3461.0,3460.5,0.3525478]
[1719842002676,1.37434219,3461.3,3460.5,0.3525478]
[1719842002970,0.02730206,3460.9,3460.8,2.88949]
[1719842003120,1.37434219,3461.4,3460.5,0.29476162]
[1719842003316,0.02730206,3460.9,3460.8,2.8895]
[1719842003553,1.37434219,3461.4,3460.8,2.8895]
[1719842003823,1.37434219,3461.5,3460.9,2.94718184]
[1719842004051,1.37434219,3461.6,3461.0,2.88931]
[1719842004253,1.37434219,3461.6,3460.5,3.281]
[1719842004254,1.37434219,3461.6,3461.1,2.94697669]
[1719842004589,1.37434219,3461.7,3461.4,2.88892]
[1719842004799,2.88815,3462.5,3461.6,2.88883]
[1719842004800,1.44667001,3462.2,3461.6,2.88883]
[1719842005096,8.70445489,3462.3,3461.6,2.88883]
[1719842005231,8.70445489,3462.3,3461.8,2.88866]
[1719842005232,1.37445489,3462.3,3461.8,2.88866]
[1719842005436,1.37445489,3462.5,3461.9,0.05776584]
[1719842005673,1.37445489,3462.5,3461.8,2.88866]
[1719842005674,0.0722073,3462.5,3461.6,2.88883]
[1719842005932,1.44666219,3462.5,3461.3,6.17007]
[1719842006161,2.88828,3462.3,3461.3,2.88907]
[1719842006471,0.07221211,3462.2,3460.7,2.88953]
[1719842006694,0.07221211,3462.2,3460.8,3.0]
[1719842006695,2.88883,3461.6,3460.8,3.0]
[1719842006848,2.45091211,3462.2,3460.2,3.281]
[1719842006849,0.07222971,3461.5,3460.2,3.281]
[1719842007030,2.88925,3461.1,3460.2,6.17095]
[1719842007226,0.07223251,3461.3,3460.1,0.578025]
[1719842007434,10.21828,3462.3,3460.0,2.89016]
[1719842007435,2.88946,3460.9,3460.0,2.89016]
[1719842007625,2.88946,3460.9,3460.1,2.89008]
[1719842008177,0.07224051,3461.0,3459.8,2.2754]
[1719842008403,1.37380019,3461.2,3460.4,2.88978]
[1719842008677,1.37380019,3461.4,3459.8,5.5564]
[1719842008878,0.07223193,3461.3,3460.5,2.88969]
[1719842009081,0.07223193,3461.3,3460.3,2.8899]
[1719842009450,2.3787,3462.2,3460.4,0.05778557]
[1719842009451,1.37380019,3461.5,3460.4,0.05778557]
[1719842009781,1.37380019,3461.6,3460.8,2.88948]
[1719842009985,0.07223196,3461.8,3460.8,2.88944]
[1719842009986,1.37380019,3461.8,3460.8,2.88944]
[1719842010140,2.88875,3461.7,3460.8,2.88944]
[1719842010333,0.03164734,3461.8,3460.9,2.88939]
[1719842010563,1.44602109,3461.9,3461.0,2.88933]
[1719842010744,0.0316625,3461.8,3461.2,2.88913]
[1719842010990,0.0722173,3462.1,3461.1,2.88923]
[1719842010991,4.26302666,3462.0,3461.1,2.88923]
[1719842011281,2.88872,3461.8,3460.8,2.88948]
[1719842011561,2.88872,3461.8,3460.9,3.467322]
[1719842011777,0.03167644,3461.7,3460.9,3.467322]
[1719842011944,0.03167644,3461.7,3460.9,0.577912]
[1719842012148,2.88859,3461.9,3460.8,2.88949]
[1719842012333,2.88894,3461.5,3460.4,2.88976]
[1719842012534,2.88908,3461.3,3460.5,3.0]
[1719842013371,2.961186,3461.5,3460.5,3.0]
[1719842013567,2.88896,3461.5,3460.6,2.88967]
[1719842013868,2.88896,3461.5,3460.7,0.33188642]
[1719842014079,4.26375517,3461.6,3460.7,0.33188642]
[1719842014293,2.88908,3461.3,3460.4,2.88976]
[1719842014575,5.77823,3461.3,3460.3,6.17091]
[1719842014772,5.77823,3461.3,3460.4,3.0]
[1719842014773,2.88908,3461.3,3460.4,3.0]
[1719842014996,0.07222732,3461.4,3460.5,0.917091]
[1719842015139,2.88893,3461.5,3460.5,3.806831]
[1719842015588,2.88893,3461.5,3460.6,2.88967]
[1719842016035,4.26367517,3461.7,3460.7,2.88958]
[1719842016233,4.29534769,3461.7,3460.8,3.5590741]
[1719842016496,2.92044252,3461.7,3460.9,2.88941]
[1719842016640,0.03167252,3461.7,3460.9,2.88941]
[1719842016987,2.88881,3461.7,3460.8,0.6696341]
[1719842017147,2.92048252,3461.7,3460.8,0.6696341]
[1719842017358,2.88897,3461.5,3460.5,3.806801]
[1719842017538,2.88911,3461.3,3460.5,0.917091]
[1719842017993,2.88911,3461.3,3460.5,3.806821]
[1719842018344,2.88936,3461.0,3460.5,0.917091]
[1719842018544,2.88944,3460.9,3460.0,2.89011]
[1719842018777,2.88933,3461.1,3460.1,5.89007]
[1719842019000,2.88933,3461.1,3460.2,2.89]
[1719842019297,4.26396732,3461.3,3460.3,2.88991]
[1719842019586,2.88911,3461.3,3460.4,2.88978]
[1719842019811,2.96134201,3461.3,3460.4,3.767749]
[1719842020087,0.03166378,3461.3,3460.5,2.88967]
[1719842020261,0.07223202,3461.4,3460.6,2.88964]
[1719842020457,0.07223202,3461.4,3460.4,6.657519]
[1719842020682,0.10389636,3461.4,3460.4,3.767739]
[1719842021069,0.10389636,3461.4,3460.6,2.88965]
[1719842021070,0.53206521,3461.4,3460.6,2.88965]
[1719842021275,2.88925,3461.1,3460.5,0.6657709]
[1719842021442,2.88916,3461.3,3460.5,0.6657709]
[1719842021649,2.88916,3461.3,3460.3,2.88984]
[1719842021650,2.8893,3461.1,3460.3,2.88984]
[1719842022567,0.07223205,3461.0,3459.9,0.55564]
[1719842022877,0.07223205,3461.0,3459.8,2.2754]
[1719842022878,2.88956,3460.8,3459.8,2.2754]
[1719842023089,2.88959,3460.7,3459.9,2.89025]
[1719842023452,0.0722396,3460.9,3460.0,2.89016]
[1719842023761,0.0722396,3460.9,3459.5,3.0]
[1719842023762,1.44669167,3460.9,3459.5,3.0]
[1719842024069,2.88981,3460.5,3459.7,2.89041]
[1719842024250,2.88981,3460.5,3459.8,3.0]
[1719842024447,2.88992,3460.3,3459.6,0.6281]
[1719842024992,2.88985,3460.4,3459.6,3.51859]
[1719842026274,2.88992,3460.3,3459.6,0.6281]
[1719842026475,2.89006,3460.2,3459.6,0.6281]
[1719842026679,2.88992,3460.3,3459.3,5.89068]
[1719842026867,2.88992,3460.3,3459.5,2.89057]
[1719842027389,2.89001,3460.2,3459.4,2.89059]
[1719842028268,1.44670121,3460.4,3459.4,2.89059]
[1719842028449,2.88999,3460.3,3459.3,5.89067]
[1719842028654,2.89004,3460.2,3459.4,1.12632]
[1719842029169,2.89004,3460.2,3459.4,4.01699]
[1719842029364,2.89025,3459.9,3459.4,1.12632]
[1719842029565,2.89025,3459.9,3459.2,2.4817]
[1719842029921,2.8901,3460.1,3459.2,2.89083]
[1719842030120,2.8901,3460.1,3459.3,0.906272]
[1719842030325,2.8901,3460.1,3459.3,3.796992]
[1719842030487,2.89018,3460.0,3459.3,0.906272]
[1719842030691,2.89018,3460.0,3459.2,2.89083]
[1719842030889,2.8901,3460.1,3459.0,3.281]
[1719842031227,2.89029,3459.9,3459.1,2.89089]
[1719842031716,1.37502303,3460.3,3459.2,2.89083]
[1719842031922,1.44727759,3460.4,3459.5,2.89058]
[1719842032132,0.50054035,3460.3,3459.6,0.05780365]
[1719842032289,1.37502303,3460.6,3459.7,2.89036]
[1719842032490,3.0,3460.6,3459.8,2.94807724]
[1719842032928,3.0,3460.6,3459.8,2.89028]
[1719842033092,3.0,3460.6,3459.9,2.94803568]
[1719842033292,2.88939,3461.0,3460.0,2.89015]
[1719842033526,3.38991849,3460.9,3460.1,0.05779399]
[1719842033835,4.26461868,3460.9,3460.1,0.05779399]
[1719842033992,2.88945,3460.9,3460.1,2.94787399]
[1719842034188,1.37516868,3461.0,3460.2,2.88995]
[1719842034388,1.87562599,3461.0,3460.3,0.05779072]
[1719842034592,4.26444868,3461.1,3460.3,2.94769072]
[1719842034809,4.26444868,3461.1,3460.4,2.88982]
[1719842034810,1.37516868,3461.1,3460.4,2.88982]
[1719842035024,1.37516868,3460.9,3460.5,0.05779017]
[1719842035223,1.37516868,3461.1,3460.1,2.89003]
[1719842035428,1.37516868,3460.9,3459.9,2.89018]
[1719842035628,3.39001254,3460.8,3460.0,0.534098]
[1719842035803,2.88972,3460.6,3459.7,5.34118]
[1719842036140,1.37510037,3460.7,3459.7,2.4508]
[1719842036290,2.88952,3460.8,3459.8,3.33879271]
[1719842036291,1.37510037,3460.8,3459.8,3.33879271]
[1719842036495,1.37510037,3461.2,3460.3,2.88985]
[1719842036739,1.37510037,3461.2,3460.2,3.281]
[1719842036740,2.88914,3461.3,3460.4,2.94761576]
[1719842036890,0.50040284,3461.2,3460.4,3.51269158]
[1719842037090,4.76468321,3461.2,3460.4,0.62286158]
[1719842037408,4.26428037,3461.2,3460.5,0.05778577]
[1719842037931,1.37510037,3461.3,3460.6,2.88966]
[1719842038130,2.8888,3461.7,3460.4,3.51269158]
[1719842038131,1.37510037,3461.4,3460.7,0.05778144]
[1719842038331,3.0,3461.6,3460.7,0.05778144]
[1719842038332,1.37510037,3461.5,3460.7,0.05778144]
[1719842038632,1.37510037,3461.5,3460.8,2.88947]
[1719842038633,0.50035217,3461.5,3460.8,2.88947]
[1719842038796,0.53200677,3461.5,3460.9,0.05778112]
[1719842038995,4.37557488,3461.6,3460.9,0.05778112]
[1719842039332,0.02921093,3461.5,3460.9,0.05778112]
[1719842039913,0.50035677,3461.5,3460.9,0.05778112]
[1719842040110,0.50034521,3461.5,3460.7,2.88955]
[1719842040314,2.88807,3462.6,3460.8,3.23622196]
[1719842040315,1.37557488,3461.7,3460.8,3.23622196]
[1719842040514,1.37557488,3461.7,3460.9,2.88941]
[1719842040710,0.03168287,3461.6,3461.0,2.88933]
[1719842041014,1.37557488,3461.8,3461.1,2.88924]
[1719842041248,0.02927032,3461.5,3460.9,2.88938]
[1719842041444,1.37557488,3461.8,3460.8,0.288955]
[1719842041445,1.37584565,3461.8,3461.0,3.4365835]
[1719842041646,2.88834,3462.2,3461.2,2.88911]
[1719842041647,1.37584565,3461.9,3461.2,2.88911]
[1719842041846,0.02724925,3461.7,3461.2,2.88911]
[1719842042150,0.02938122,3461.6,3461.2,2.88911]
[1719842042350,1.37584565,3462.0,3461.2,2.88911]
[1719842042544,1.37584565,3462.0,3461.0,3.4365835]
[1719842042545,0.0293437,3461.5,3461.3,2.88908]
[1719842042752,1.37584565,3462.0,3461.4,3.23568017]
[1719842042927,1.37584565,3462.1,3461.4,3.177908]
[1719842043112,0.02949376,3461.9,3461.6,2.88882]
[1719842043316,0.02957817,3462.0,3461.8,2.88867]
[1719842043534,1.37584565,3462.5,3461.9,2.94634422]
[1719842043768,2.88792,3462.7,3461.9,2.94634422]
[1719842043769,1.87604563,3462.6,3461.9,2.94634422]
[1719842044054,1.37584565,3462.6,3461.9,2.94634422]
[1719842044278,1.87604592,3462.6,3461.9,2.94634422]
[1719842044422,1.87604592,3462.6,3462.0,2.94624302]
[1719842044621,0.07220105,3463.0,3462.1,2.88836]
[1719842044817,1.37676436,3462.8,3461.9,2.88852]
[1719842045034,2.10071072,3462.7,3461.9,2.88852]
[1719842045255,3.97774201,3462.7,3461.9,2.88852]
[1719842045465,4.26472427,3462.8,3461.9,2.88852]
[1719842045765,2.63090717,3462.7,3462.0,2.94623956]
[1719842046058,2.63090717,3462.7,3462.0,3.52972552]
[1719842046059,0.02995132,3462.7,3462.0,3.52972552]
[1719842046266,0.02995132,3462.7,3462.2,2.88828]
[1719842046463,0.07219635,3463.0,3462.3,0.05775708]
[1719842046648,0.02777713,3462.6,3462.3,0.05775708]
[1719842046847,0.02777713,3462.6,3462.0,2.88849]
[1719842046848,2.88801,3462.6,3461.7,2.88875]
[1719842047067,0.02987633,3462.5,3461.8,7.010586]
[1719842047351,4.26461427,3462.9,3461.8,7.010586]
[1719842047352,0.07219991,3462.7,3461.8,1.121936]
[1719842047577,2.88832,3462.3,3461.4,0.288908]
[1719842047739,2.88832,3462.3,3461.4,3.177888]
[1719842048073,0.02979868,3462.2,3461.5,2.88891]
[1719842048273,0.02979868,3462.2,3461.4,0.288908]
[1719842048477,0.02979868,3462.2,3461.8,2.88865]
[1719842048678,2.88809,3462.5,3461.6,2.88876]
[1719842048832,0.02604747,3462.1,3461.7,2.88873]
[1719842049162,2.88795,3462.7,3461.8,2.88866]
[1719842049317,0.02782832,3462.0,3461.8,2.88866]
[1719842049520,2.88802,3462.6,3461.9,0.577749]
[1719842049723,0.0259406,3461.9,3461.8,2.88866]
[1719842049971,2.88805,3462.6,3461.8,2.88866]
[1719842050149,0.0259729,3461.9,3461.6,2.88876]
[1719842050355,2.96022138,3462.6,3461.6,2.88876]
[1719842050536,2.88802,3462.6,3461.7,2.88868]
[1719842050736,0.02803701,3462.5,3461.8,2.88866]
[1719842050949,0.02803701,3462.5,3461.9,2.88852]
[1719842051141,1.37674405,3462.9,3462.3,2.88825]
[1719842051365,1.37674405,3462.9,3462.0,2.88849]
[1719842051737,1.37674405,3462.9,3462.1,2.8884]
[1719842052084,1.37674405,3462.9,3462.1,0.825446]
[1719842052240,0.07219606,3462.8,3461.7,0.61063308]
[1719842052447,0.07219606,3462.8,3462.0,2.88844]
[1719842052448,2.88785,3462.8,3462.0,2.88844]
[1719842052854,2.88807,3462.6,3461.7,3.61063308]
[1719842053128,2.88813,3462.5,3461.7,2.88874]
[1719842053567,2.88792,3462.7,3461.8,2.88861]
[1719842053734,2.888,3462.6,3461.9,0.577735]
[1719842053938,2.88792,3462.7,3461.8,2.88861]
[1719842054442,2.888,3462.6,3461.8,2.88861]
[1719842054823,2.96008045,3462.8,3461.9,2.88858]
[1719842055279,2.96012975,3462.7,3461.9,2.88858]
[1719842055466,2.88793,3462.7,3461.9,2.88858]
[1719842055669,2.888,3462.6,3461.9,0.53088801]
[1719842056257,2.88817,3462.4,3461.9,0.53088801]
[1719842056498,2.88835,3462.2,3461.5,0.3288908]
[1719842056638,2.88868,3461.8,3461.0,2.8893]
[1719842056843,2.88851,3462.0,3461.0,2.8893]
[1719842057104,0.02583311,3461.7,3461.2,2.88914]
[1719842057395,0.0258006,3461.6,3461.2,2.88914]
[1719842057559,2.88851,3462.0,3461.3,0.877844]
[1719842057739,0.02760866,3461.5,3461.3,3.766914]
[1719842057938,2.96055264,3462.2,3461.3,0.877844]
[1719842058145,2.96055264,3462.2,3461.3,3.766904]
[1719842058146,0.0275859,3461.4,3461.3,3.766904]
[1719842058371,2.88834,3462.2,3461.3,3.766904]
[1719842058693,2.88838,3462.2,3461.3,3.766904]
[1719842058900,0.02597439,3462.1,3461.5,2.88891]
[1719842059191,2.88794,3462.7,3461.6,2.94659782]
[1719842059484,0.02592332,3462.0,3461.8,2.88859]
[1719842059692,4.26449405,3462.9,3461.9,3.77545658]
[1719842060024,4.26449405,3462.9,3461.9,0.82911778]
[1719842060025,3.0,3462.8,3461.9,0.82911778]
[1719842060138,2.88823,3462.4,3461.4,3.88407115]
[1719842060337,2.88842,3462.1,3461.4,0.99508115]
[1719842060551,2.88824,3462.4,3461.1,3.0]
[1719842060552,2.88876,3461.7,3461.1,3.0]
[1719842060736,0.07220959,3462.3,3461.1,3.0]
[1719842060737,2.91621286,3462.0,3461.1,2.88918]
[1719842060964,0.02752353,3461.6,3461.1,2.88918]
[1719842061169,2.88836,3462.2,3461.1,2.88918]
[1719842061392,2.8883,3462.3,3460.9,5.456]
[1719842061567,2.8883,3462.3,3461.4,2.88893]
[1719842061769,2.88834,3462.2,3461.4,2.88893]
[1719842061977,2.88834,3462.2,3461.0,0.96043]
[1719842061978,0.07220682,3462.2,3461.0,0.96043]
[1719842062188,2.88902,3461.4,3461.0,0.96043]
[1719842062495,2.88884,3461.6,3460.8,2.4113]
[1719842062685,2.88884,3461.6,3460.8,5.30079]
[1719842063497,2.88892,3461.5,3460.8,2.4113]
[1719842064026,2.8887,3461.8,3460.2,7.32]
[1719842064027,2.96126376,3461.4,3460.2,7.32]
[1719842064308,2.88944,3460.9,3460.2,1.949]
[1719842064507,2.88984,3460.4,3459.8,2.3566]
[1719842064728,2.8897,3460.6,3459.5,2.89053]
[1719842064863,2.96177198,3460.8,3459.9,2.89025]
[1719842065063,2.88953,3460.8,3459.9,2.89025]
[1719842066225,2.8897,3460.6,3459.8,2.456]
[1719842066707,2.88976,3460.5,3459.8,2.456]
[1719842066998,2.88984,3460.4,3459.8,0.6123153]
[1719842067367,2.8897,3460.6,3459.8,0.6123153]
[1719842068404,2.88981,3460.5,3459.8,0.6123153]
[1719842068924,2.8899,3460.4,3459.8,0.6123153]
[1719842069265,2.8899,3460.4,3459.9,0.42793883]
[1719842069704,2.89003,3460.2,3459.9,0.42793883]
[1719842069998,2.89003,3460.2,3459.6,0.776573]
[1719842070177,2.88949,3460.9,3459.3,5.30995]
[1719842070178,2.89014,3460.1,3459.3,5.30995]
[1719842070494,2.96221756,3460.3,3459.4,3.0]
[1719842070495,2.89005,3460.2,3459.4,3.0]
[1719842070696,2.88997,3460.3,3459.5,1.076595]
[1719842070862,2.2983,3461.3,3459.5,1.076595]
[1719842070863,0.07225349,3460.2,3459.5,1.076595]
[1719842071066,2.89015,3460.1,3459.3,2.4192]
[1719842071270,2.89017,3460.0,3459.3,2.4192]
[1719842072011,2.89025,3459.9,3459.2,2.456]
[1719842072190,2.89048,3459.7,3458.8,7.68807]
[1719842072391,2.89048,3459.7,3458.9,7.249027]
[1719842072706,2.89029,3459.9,3458.9,7.249027]
[1719842072707,2.89011,3460.1,3459.1,2.89084]
[1719842072910,2.89011,3460.1,3459.2,2.89076]
[1719842074192,2.88994,3460.3,3459.5,2.89058]
[1719842074510,2.88994,3460.3,3459.6,0.05780199]
[1719842074814,2.88967,3460.6,3459.7,0.05780204]
[1719842075113,2.2983,3461.3,3459.8,5.5889987]
[1719842075416,2.88964,3460.7,3459.8,5.5312002]
[1719842076319,2.88977,3460.5,3459.8,2.6409302]
[1719842076482,2.89,3460.3,3459.8,0.2948302]
[1719842076678,2.89,3460.3,3459.5,2.89059]
[1719842077479,2.88977,3460.5,3459.6,2.8905]
[1719842077703,0.0722481,3461.0,3459.7,0.05779848]
[1719842078013,2.88951,3460.8,3459.6,2.456]
[1719842078182,0.0722481,3461.0,3459.7,0.534663]
[1719842078183,2.88976,3460.5,3459.7,0.534663]
[1719842079187,2.88993,3460.3,3459.7,0.534663]
[1719842079386,2.88979,3460.5,3459.7,0.534663]
[1719842079690,2.88939,3461.0,3460.0,2.89012]
[1719842080033,5.85115857,3460.9,3460.1,0.29479191]
[1719842080194,2.96165857,3460.9,3460.1,0.29479191]
[1719842080529,2.88964,3460.7,3460.1,0.29479191]
[1719842081905,2.88967,3460.6,3460.1,0.29479191]
[1719842082231,2.89006,3460.2,3459.7,0.534663]
[1719842082433,2.89006,3460.2,3459.4,0.29780633]
[1719842082726,0.07225258,3460.3,3459.5,2.89058]
[1719842083037,2.88992,3460.3,3459.5,2.89058]
[1719842083633,2.88975,3460.5,3459.5,2.89058]
[1719842083936,2.88975,3460.5,3459.6,0.589058]
[1719842084426,2.8896,3460.7,3459.9,2.89024]
[1719842084840,2.88976,3460.5,3459.7,2.89035]
[1719842085054,0.07224567,3460.6,3459.8,2.89033]
[1719842085187,2.88945,3460.9,3459.8,0.05779726]
[1719842085388,2.88945,3460.9,3460.1,2.89007]
[1719842085622,2.88927,3461.1,3460.2,0.05779354]
[1719842085789,2.96158823,3461.0,3460.2,2.94774354]
[1719842085990,5.88923,3461.2,3460.3,0.05779083]
[1719842086185,2.88894,3461.5,3460.5,2.88974]
[1719842086186,2.88896,3461.5,3460.5,2.88974]
[1719842086415,2.88896,3461.5,3460.7,2.88957]
[1719842086755,2.88896,3461.5,3460.8,0.05778334]
[1719842086943,2.88903,3461.4,3460.8,0.05778334]
[1719842087141,2.88896,3461.5,3460.8,0.05778334]
[1719842087346,2.96101666,3461.7,3460.8,0.05778334]
[1719842087549,2.88898,3461.5,3460.8,0.05778198]
[1719842088214,2.88898,3461.5,3460.8,0.40656746]
[1719842088409,2.96099666,3461.7,3460.8,0.40656746]
[1719842088641,2.96099666,3461.7,3460.6,0.54035278]
[1719842088953,0.07222172,3461.8,3460.9,2.88941]
[1719842089109,5.96090172,3461.8,3460.9,2.88941]
[1719842089315,2.88877,3461.7,3460.9,2.88941]
[1719842089761,3.0,3461.8,3460.9,2.88941]
[1719842089949,0.07222157,3461.7,3460.9,2.88941]
[1719842090130,0.07222157,3461.7,3460.7,2.88951]
[1719842090131,0.07222159,3461.8,3461.0,3.52493927]
[1719842090318,2.88864,3461.9,3461.0,0.577892]
[1719842090518,2.88884,3461.6,3460.8,2.88944]
[1719842090821,2.88884,3461.6,3460.7,2.456]
[1719842091015,2.88898,3461.5,3460.4,2.88981]
[1719842091220,2.88898,3461.5,3460.4,2.88979]
[1719842091518,2.88898,3461.5,3460.5,3.424279]
[1719842091713,2.88877,3461.7,3460.7,2.88952]
[1719842091919,0.07222311,3461.6,3460.5,3.424279]
[1719842092120,2.88901,3461.4,3460.6,2.88965]
[1719842092310,2.88901,3461.4,3460.7,0.6314039]
[1719842092529,2.88905,3461.4,3460.7,0.6314039]
[1719842093018,4.26502484,3461.4,3460.6,2.88962]
[1719842093220,0.50035934,3461.3,3460.6,2.88962]
[1719842093532,1.87635257,3461.3,3460.6,2.88962]
[1719842093716,1.37597484,3461.3,3460.6,2.88962]
[1719842093930,4.26502484,3461.4,3460.6,2.88962]
[1719842094156,4.26502484,3461.4,3460.7,0.57794]
[1719842094157,0.5003747,3461.3,3460.7,0.57794]
[1719842094371,1.87634954,3461.3,3460.7,0.57794]
[1719842094533,1.37597484,3461.3,3460.7,0.57794]
[1719842095252,1.37607477,3461.3,3460.7,0.57794]
[1719842095453,4.26516477,3461.3,3460.7,0.57794]
[1719842095633,2.88909,3461.3,3460.7,0.57794]
[1719842095835,4.26516477,3461.3,3460.7,0.57794]
[1719842096481,2.88909,3461.3,3460.7,0.57794]
[1719842096977,4.26516477,3461.3,3460.7,0.57794]
[1719842097652,1.37607477,3461.4,3460.7,0.57794]
[1719842097871,1.87644983,3461.4,3460.7,0.57794]
[1719842098034,4.76545983,3461.4,3460.7,0.57794]
[1719842098230,0.50037506,3461.3,3460.7,0.57794]
[1719842098433,2.88887,3461.6,3460.8,0.4045433]
[1719842098629,1.37663901,3461.4,3460.8,0.4045433]
[1719842098834,1.37663901,3461.4,3460.9,0.05777871]
[1719842099064,1.37670181,3461.4,3460.8,3.236251]
[1719842099764,1.37670181,3461.4,3460.9,2.88942]
[1719842100099,8.16839,3462.3,3461.0,6.1976411]
[1719842100100,1.37670181,3461.7,3461.0,6.1976411]
[1719842100284,2.88889,3461.6,3461.0,3.3083611]
[1719842100440,1.37670181,3461.7,3461.0,3.3083611]
[1719842100441,4.26545181,3461.7,3461.0,3.3083611]
[1719842100637,0.50033258,3461.6,3461.0,3.3083611]
[1719842100845,2.88886,3461.6,3461.1,0.65445421]
[1719842101046,2.8891,3461.3,3460.5,2.4273]
[1719842101252,2.8891,3461.3,3460.5,8.31705]
[1719842101483,0.50038227,3461.2,3460.5,2.4273]
[1719842101763,4.76655588,3461.2,3460.5,2.4273]
[1719842102064,0.50040736,3461.1,3460.5,2.4273]
[1719842102278,4.26617361,3461.2,3460.6,0.831713]
[1719842102480,0.50041286,3461.1,3460.6,0.831713]
[1719842102765,4.26617361,3461.2,3460.6,0.831713]
[1719842102993,0.50041146,3461.1,3460.6,3.721383]
[1719842103198,1.37699361,3461.2,3460.6,3.721383]
[1719842103386,1.37699361,3461.2,3460.7,3.7933913]
[1719842103703,1.37699361,3461.4,3460.8,2.8895]
[1719842103915,1.37699361,3461.4,3461.0,2.88932]
[1719842104063,1.37696592,3461.5,3461.1,0.05777866]
[1719842104268,1.37696592,3461.6,3461.1,0.05777866]
[1719842104596,1.37696592,3461.5,3461.1,0.05777866]
[1719842104782,1.37696592,3461.5,3460.8,2.88945]
[1719842104994,1.37696592,3461.5,3460.9,0.75146443]
[1719842105300,4.26609592,3461.3,3460.5,2.71979154]
[1719842105519,1.87730487,3461.2,3460.5,5.60952154]
[1719842105873,1.87730487,3461.2,3460.6,2.88966]
[1719842106073,1.37696592,3461.3,3460.5,2.71979154]
[1719842106381,2.88901,3461.4,3460.6,0.86095915]
[1719842106382,1.87734435,3461.2,3460.6,0.86095915]
[1719842106698,1.37696592,3461.2,3460.6,0.86095915]
[1719842106892,1.37696592,3461.3,3460.6,3.75061915]
[1719842107113,0.50037736,3461.2,3460.6,3.75061915]
[1719842107298,1.37693351,3461.2,3460.6,3.75061915]
[1719842107621,1.37693351,3461.4,3460.8,2.88949]
[1719842107792,1.37693351,3461.5,3460.9,0.05777997]
[1719842107992,1.87727394,3461.5,3461.0,2.94710842]
[1719842108196,1.37693351,3461.5,3461.0,2.94710842]
[1719842108572,0.50033379,3461.8,3461.6,2.88883]
[1719842108573,1.37693351,3461.8,3461.6,2.88883]
[1719842108771,1.37693351,3462.1,3461.7,0.810852]
[1719842108992,1.37693351,3462.1,3461.5,0.05777027]
[1719842109188,1.37693351,3462.1,3461.6,2.88883]
[1719842109517,2.88817,3462.4,3461.7,0.0577683]
[1719842109518,1.37693351,3462.3,3461.7,0.0577683]
[1719842109839,0.500243,3462.2,3461.7,0.0577683]
[1719842109992,1.37693351,3462.3,3461.7,0.0577683]
[1719842110303,2.88817,3462.4,3461.7,0.87439113]
[1719842110510,1.87784054,3462.3,3461.8,0.05776744]
[1719842110957,2.8884,3462.2,3461.4,5.21963]
[1719842111111,2.8884,3462.2,3460.9,2.2903]
[1719842111112,1.87805838,3462.1,3460.9,2.2903]
[1719842111443,1.87805838,3462.1,3461.1,2.88918]
[1719842111444,3.46096244,3462.0,3461.1,2.88918]
[1719842111637,3.38882001,3461.9,3461.1,2.88918]
[1719842111786,4.3385408,3462.0,3461.3,2.88905]
[1719842111787,1.37781837,3462.0,3461.3,2.88905]
[1719842111994,2.88882,3461.7,3461.0,1.64358511]
[1719842112321,2.88882,3461.7,3460.7,3.82558107]
[1719842112322,3.38924479,3461.6,3460.8,2.88949]
[1719842113362,2.88887,3461.6,3460.7,3.82558107]
[1719842113506,1.87757918,3461.4,3460.8,0.47336698]
[1719842113706,1.37720448,3461.4,3460.8,0.47336698]
[1719842113903,2.88892,3461.5,3460.8,0.47336698]
[1719842114103,1.87757748,3461.4,3460.9,0.05778166]
[1719842114349,1.37721617,3461.5,3460.9,0.05778166]
[1719842114542,1.8775511,3461.5,3460.9,0.78240163]
[1719842114726,1.37721617,3461.6,3460.9,0.78240163]
[1719842115105,1.37721617,3461.6,3461.0,2.88933]
[1719842115312,1.37721617,3461.6,3461.1,0.05777901]
[1719842115762,1.37721617,3461.7,3461.2,2.88914]
[1719842115960,1.37721617,3461.7,3461.3,0.05777491]
[1719842116493,1.37721617,3461.7,3461.2,2.88914]
[1719842116618,1.37732697,3461.7,3461.2,2.88914]
[1719842116813,1.37732697,3461.7,3461.2,3.539449]
[1719842117141,1.37732697,3461.8,3461.3,2.88903]
[1719842117564,1.37732697,3461.9,3461.4,5.25452238]
[1719842118051,0.07221468,3462.3,3461.5,2.88891]
[1719842118052,1.37732697,3462.0,3461.5,2.88891]
[1719842118210,1.37732697,3462.2,3461.8,2.88865]
[1719842118413,0.07221305,3462.5,3461.8,2.88865]
[1719842118414,1.37732697,3462.3,3461.8,0.58353004]
[1719842118674,0.07220834,3462.7,3462.0,2.88843]
[1719842118675,0.50021807,3462.6,3462.0,2.88843]
[1719842118968,1.37732697,3462.7,3462.1,2.88841]
[1719842119332,1.8775006,3462.6,3461.9,2.456]
[1719842119532,2.95995005,3462.9,3462.1,2.88839]
[1719842119846,1.37767718,3462.7,3462.1,2.88839]
[1719842120040,1.87784824,3462.6,3461.5,9.776]
[1719842120282,2.96015006,3462.7,3461.4,5.19676]
[1719842120283,1.37767718,3462.4,3461.6,1.797276]
[1719842120464,0.50017106,3462.3,3461.6,2.88879]
[1719842120609,4.26585718,3462.4,3461.5,2.88886]
[1719842120814,0.50021625,3462.3,3461.6,2.88882]
[1719842121060,1.44988539,3462.4,3461.6,2.88882]
[1719842121256,0.50021971,3462.3,3461.7,2.88868]
[1719842121427,1.44988539,3462.5,3461.7,3.69721]
[1719842121628,0.50021459,3462.4,3461.9,2.88853]
[1719842121873,1.37767718,3462.6,3462.0,2.88845]
[1719842122166,1.37767718,3462.7,3462.2,2.88828]
[1719842122511,1.37767718,3462.8,3462.2,2.88828]